[Event "MČR v bleskovém šachu družstev 2019"]
[Site "Teplice, Czech Republic"]
[Date "2019.09.14"]
[Round "15.5"]
[White "Vykouk, Jan"]
[Black "Trepka, Jan"]
[Result "1/2-1/2"]
[TimeControl "3 mim. + 2 s"]
[WhiteTitle "IM"]
[BlackFideId "322814"]
[WhiteElo "2439"]
[BlackElo "2186"]

1. e4 {[%clk 00:03:02]} {[%emt 00:00:01]} c6 {[%clk 00:03:04]} {[%emt
00:00:01]} 2. Nf3 {[%clk 00:03:02]} {[%emt 00:00:02]} d5 {[%clk 00:03:05]} 3.
Nc3 {[%clk 00:03:03]} {[%emt 00:00:01]} Bg4 {[%clk 00:03:06]} {[%emt 00:00:01]}
4. h3 {[%clk 00:03:04]} {[%emt 00:00:01]} Bxf3 {[%clk 00:03:07]} {[%emt
00:00:02]} 5. Qxf3 {[%clk 00:03:04]} {[%emt 00:00:01]} Nf6 {[%clk 00:03:07]}
{[%emt 00:00:02]} 6. d3 {[%clk 00:03:01]} {[%emt 00:00:04]} e6 {[%clk
00:03:07]} {[%emt 00:00:03]} 7. Bd2 {[%clk 00:03:02]} {[%emt 00:00:02]} Be7
{[%clk 00:02:59]} {[%emt 00:00:10]} 8. g3 {[%clk 00:03:01]} {[%emt 00:00:02]}
O-O {[%clk 00:02:44]} {[%emt 00:00:17]} 9. Bg2 {[%clk 00:03:02]} {[%emt
00:00:01]} Re8 {[%clk 00:02:36]} {[%emt 00:00:10]} 10. O-O {[%clk 00:03:01]}
{[%emt 00:00:02]} Nbd7 {[%clk 00:02:33]} {[%emt 00:00:05]} 11. Qe2 {[%clk
00:03:00]} {[%emt 00:00:03]} dxe4 {[%clk 00:02:09]} {[%emt 00:00:27]} 12. dxe4
{[%clk 00:02:58]} {[%emt 00:00:04]} Qb6 {[%clk 00:02:04]} {[%emt 00:00:08]} 13.
Rab1 {[%clk 00:02:52]} {[%emt 00:00:07]} Rad8 {[%clk 00:02:03]} {[%emt
00:00:03]} 14. Be3 {[%clk 00:02:44]} {[%emt 00:00:10]} Qc7 {[%clk 00:01:56]}
{[%emt 00:00:09]} 15. f4 {[%clk 00:02:35]} {[%emt 00:00:11]} Bc5 {[%clk
00:01:55]} {[%emt 00:00:04]} 16. e5 {[%clk 00:02:10]} {[%emt 00:00:27]} Nd5
{[%clk 00:01:47]} {[%emt 00:00:10]} 17. Nxd5 {[%clk 00:02:10]} {[%emt
00:00:02]} cxd5 {[%clk 00:01:41]} {[%emt 00:00:07]} 18. c3 {[%clk 00:02:09]}
{[%emt 00:00:04]} Bxe3+ {[%clk 00:01:33]} {[%emt 00:00:10]} 19. Qxe3 {[%clk
00:02:09]} {[%emt 00:00:01]} Qb6 {[%clk 00:01:34]} 20. Qxb6 {[%clk 00:02:02]}
{[%emt 00:00:10]} Nxb6 {[%clk 00:01:35]} {[%emt 00:00:02]} 21. Rfd1 {[%clk
00:01:57]} {[%emt 00:00:07]} Rc8 {[%clk 00:01:33]} {[%emt 00:00:04]} 22. Rd4
{[%clk 00:01:54]} {[%emt 00:00:05]} Rc5 {[%clk 00:01:28]} {[%emt 00:00:07]} 23.
Bf1 {[%clk 00:01:52]} {[%emt 00:00:03]} Rec8 {[%clk 00:01:25]} {[%emt
00:00:06]} 24. Rbd1 {[%clk 00:01:51]} {[%emt 00:00:03]} Nc4 {[%clk 00:01:22]}
{[%emt 00:00:05]} 25. Bxc4 {[%clk 00:01:46]} {[%emt 00:00:07]} Rxc4 {[%clk
00:01:23]} {[%emt 00:00:01]} 26. Kf2 {[%clk 00:01:45]} {[%emt 00:00:01]} Kf8
{[%clk 00:01:21]} {[%emt 00:00:05]} 27. Ke3 {[%clk 00:01:46]} {[%emt 00:00:01]}
Ke7 {[%clk 00:01:21]} {[%emt 00:00:02]} 28. Rxc4 {[%clk 00:01:29]} {[%emt
00:00:19]} Rxc4 {[%clk 00:01:21]} {[%emt 00:00:02]} 29. Rd4 {[%clk 00:01:30]}
Rc7 {[%clk 00:01:22]} {[%emt 00:00:01]} 30. Rb4 {[%clk 00:01:24]} {[%emt
00:00:08]} f6 {[%clk 00:01:11]} {[%emt 00:00:13]} 31. a4 {[%clk 00:01:01]}
{[%emt 00:00:25]} Kd7 {[%clk 00:00:55]} {[%emt 00:00:19]} 32. Kd3 {[%clk
00:00:53]} {[%emt 00:00:09]} Kc6 {[%clk 00:00:34]} {[%emt 00:00:23]} 33. Rd4
{[%clk 00:00:35]} {[%emt 00:00:20]} Rf7 {[%clk 00:00:26]} {[%emt 00:00:10]} 34.
Ke3 {[%clk 00:00:30]} {[%emt 00:00:05]} a6 {[%clk 00:00:25]} {[%emt 00:00:05]}
35. exf6 {[%clk 00:00:24]} {[%emt 00:00:08]} gxf6 {[%clk 00:00:24]} {[%emt
00:00:03]} 36. Rd1 {[%clk 00:00:24]} {[%emt 00:00:02]} b5 {[%clk 00:00:22]}
{[%emt 00:00:04]} 37. axb5+ {[%clk 00:00:23]} {[%emt 00:00:03]} axb5 {[%clk
00:00:23]} {[%emt 00:00:01]} 38. Ra1 {[%clk 00:00:24]} e5 {[%clk 00:00:18]}
{[%emt 00:00:07]} 39. Ra6+ {[%clk 00:00:22]} {[%emt 00:00:05]} Kc5 {[%clk
00:00:19]} {[%emt 00:00:01]} 40. b4+ {[%clk 00:00:13]} {[%emt 00:00:11]} Kc4
{[%clk 00:00:21]} 41. Rc6+ {[%clk 00:00:14]} {[%emt 00:00:01]} Kb3 {[%clk
00:00:22]} 42. Rc5 {[%clk 00:00:15]} d4 {[%clk 00:00:22]} {[%emt 00:00:02]} 43.
cxd4 {[%clk 00:00:09]} {[%emt 00:00:08]} exd4 {[%clk 00:00:23]} 44. Kxd4 {[%clk
00:00:09]} {[%emt 00:00:02]} Kxb4 {[%clk 00:00:24]} 45. Rc8 {[%clk 00:00:09]}
{[%emt 00:00:02]} Kb3 {[%clk 00:00:23]} {[%emt 00:00:03]} 46. Kd5 {[%clk
00:00:09]} {[%emt 00:00:02]} b4 {[%clk 00:00:23]} {[%emt 00:00:03]} 47. Ke6
{[%clk 00:00:10]} {[%emt 00:00:01]} Rb7 {[%clk 00:00:22]} {[%emt 00:00:03]} 48.
Kxf6 {[%clk 00:00:09]} {[%emt 00:00:04]} Ka2 {[%clk 00:00:22]} {[%emt
00:00:02]} 49. f5 {[%clk 00:00:06]} {[%emt 00:00:05]} b3 {[%clk 00:00:23]} 50.
g4 {[%clk 00:00:05]} {[%emt 00:00:04]} b2 {[%clk 00:00:24]} {[%emt 00:00:01]}
51. Rc2 {[%clk 00:00:06]} {[%emt 00:00:01]} Kb3 {[%clk 00:00:25]} 52. Rxb2+
{[%clk 00:00:06]} {[%emt 00:00:02]} Kxb2 {[%clk 00:00:25]} 53. g5 {[%clk
00:00:07]} {[%emt 00:00:02]} Kc3 {[%clk 00:00:26]} {[%emt 00:00:01]} 54. h4
{[%clk 00:00:08]} Kd4 {[%clk 00:00:28]} {[%emt 00:00:01]} 55. h5 {[%clk
00:00:09]} {[%emt 00:00:01]} Rb6+ {[%clk 00:00:28]} {[%emt 00:00:02]} 56. Kg7
{[%clk 00:00:09]} {[%emt 00:00:01]} Rb7+ {[%clk 00:00:29]} 57. Kf6 {[%clk
00:00:07]} {[%emt 00:00:04]} Rb6+ {[%clk 00:00:19]} {[%emt 00:00:12]} 58. Kg7
{[%clk 00:00:05]} {[%emt 00:00:04]} Rb7+ {[%clk 00:00:20]} 59. Kf6 {[%clk
00:00:06]} Ke5+ {[%clk 00:03:02]} {[%emt 00:00:10]} 1/2-1/2

[Event "MČR v bleskovém šachu družstev 2019"]
[Site "Teplice, Czech Republic"]
[Date "2019.09.14"]
[Round "15.6"]
[White "Ruzicka, Ales"]
[Black "Studnicka, Tomas"]
[Result "0-1"]
[TimeControl "3 mim. + 2 s"]
[BlackTitle "IM"]
[WhiteFideId "325252"]
[WhiteElo "2102"]
[BlackElo "2215"]

1. e4 {[%clk 00:03:02]} {[%emt 00:00:02]} e5 {[%clk 00:03:02]} {[%emt
00:00:02]} 2. Nf3 {[%clk 00:03:03]} {[%emt 00:00:02]} Nf6 {[%clk 00:03:04]} 3.
d4 {[%clk 00:03:03]} {[%emt 00:00:01]} Nxe4 {[%clk 00:03:04]} {[%emt 00:00:01]}
4. Bd3 {[%clk 00:03:03]} {[%emt 00:00:02]} d5 {[%clk 00:03:05]} {[%emt
00:00:01]} 5. dxe5 {[%clk 00:03:03]} {[%emt 00:00:02]} Nc5 {[%clk 00:03:02]}
{[%emt 00:00:05]} 6. Be2 {[%clk 00:03:04]} {[%emt 00:00:01]} Be7 {[%clk
00:03:01]} {[%emt 00:00:02]} 7. O-O {[%clk 00:03:04]} {[%emt 00:00:02]} O-O
{[%clk 00:03:02]} {[%emt 00:00:01]} 8. Bf4 {[%clk 00:03:03]} {[%emt 00:00:04]}
c6 {[%clk 00:02:45]} {[%emt 00:00:19]} 9. c4 {[%clk 00:02:58]} {[%emt
00:00:07]} dxc4 {[%clk 00:02:39]} {[%emt 00:00:08]} 10. Bxc4 {[%clk 00:02:50]}
{[%emt 00:00:09]} Be6 {[%clk 00:02:39]} {[%emt 00:00:01]} 11. Bxe6 {[%clk
00:02:46]} {[%emt 00:00:06]} Nxe6 {[%clk 00:02:40]} {[%emt 00:00:01]} 12. Be3
{[%clk 00:02:45]} {[%emt 00:00:03]} Nd7 {[%clk 00:02:27]} {[%emt 00:00:15]} 13.
Nc3 {[%clk 00:02:44]} {[%emt 00:00:03]} Qc7 {[%clk 00:02:23]} {[%emt 00:00:06]}
14. Bd4 {[%clk 00:02:30]} {[%emt 00:00:16]} Rad8 {[%clk 00:02:17]} {[%emt
00:00:07]} 15. Be3 {[%clk 00:02:09]} {[%emt 00:00:24]} Nxe5 {[%clk 00:02:13]}
{[%emt 00:00:05]} 16. Qe2 {[%clk 00:02:10]} Nxf3+ {[%clk 00:02:01]} {[%emt
00:00:16]} 17. Qxf3 {[%clk 00:02:10]} {[%emt 00:00:02]} Bc5 {[%clk 00:01:54]}
{[%emt 00:00:09]} 18. Rfe1 {[%clk 00:02:07]} {[%emt 00:00:05]} Bxe3 {[%clk
00:01:39]} {[%emt 00:00:17]} 19. Rxe3 {[%clk 00:02:01]} {[%emt 00:00:08]} Rd2
{[%clk 00:01:39]} {[%emt 00:00:01]} 20. Rb1 {[%clk 00:01:50]} {[%emt 00:00:13]}
Rfd8 {[%clk 00:01:26]} {[%emt 00:00:15]} 21. g3 {[%clk 00:01:50]} {[%emt
00:00:03]} Qb6 {[%clk 00:01:03]} {[%emt 00:00:24]} 22. b3 {[%clk 00:01:43]}
{[%emt 00:00:10]} Qd4 {[%clk 00:00:53]} {[%emt 00:00:11]} 23. Kg2 {[%clk
00:01:25]} {[%emt 00:00:21]} h6 {[%clk 00:00:48]} {[%emt 00:00:07]} 24. h4
{[%clk 00:01:23]} {[%emt 00:00:04]} a5 {[%clk 00:00:43]} {[%emt 00:00:07]} 25.
a4 {[%clk 00:01:22]} {[%emt 00:00:04]} Qb4 {[%clk 00:00:34]} {[%emt 00:00:10]}
26. Ne4 {[%clk 00:01:11]} {[%emt 00:00:13]} R2d4 {[%clk 00:00:32]} {[%emt
00:00:04]} 27. Rbe1 {[%clk 00:01:06]} {[%emt 00:00:07]} b5 {[%clk 00:00:29]}
{[%emt 00:00:05]} 28. axb5 {[%clk 00:00:58]} {[%emt 00:00:10]} cxb5 {[%clk
00:00:31]} 29. R1e2 {[%clk 00:00:35]} {[%emt 00:00:26]} a4 {[%clk 00:00:32]} 30.
bxa4 {[%clk 00:00:35]} {[%emt 00:00:02]} bxa4 {[%clk 00:00:33]} 31. Rc3 {[%clk
00:00:34]} {[%emt 00:00:05]} Rc4 {[%clk 00:00:32]} {[%emt 00:00:03]} 32. Rxc4
{[%clk 00:00:33]} {[%emt 00:00:03]} Qxc4 {[%clk 00:00:33]} {[%emt 00:00:01]} 33.
Qe3 {[%clk 00:00:33]} {[%emt 00:00:02]} Qc6 {[%clk 00:00:30]} {[%emt 00:00:04]}
34. Kh2 {[%clk 00:00:33]} {[%emt 00:00:01]} Ra8 {[%clk 00:00:30]} {[%emt
00:00:02]} 35. Ra2 {[%clk 00:00:34]} {[%emt 00:00:02]} Qd5 {[%clk 00:00:28]}
{[%emt 00:00:04]} 36. Ra3 {[%clk 00:00:34]} {[%emt 00:00:02]} Qb5 {[%clk
00:00:22]} {[%emt 00:00:07]} 37. f3 {[%clk 00:00:34]} {[%emt 00:00:02]} Qb2+
{[%clk 00:00:22]} {[%emt 00:00:02]} 38. Kh3 {[%clk 00:00:35]} {[%emt 00:00:02]}
Qc2 {[%clk 00:00:20]} {[%emt 00:00:04]} 39. Rc3 {[%clk 00:00:34]} {[%emt
00:00:03]} Qd1 {[%clk 00:00:19]} {[%emt 00:00:03]} 40. Rd3 {[%clk 00:00:33]}
{[%emt 00:00:03]} Qb1 {[%clk 00:00:20]} 41. Nd6 {[%clk 00:00:32]} {[%emt
00:00:05]} Qb8 {[%clk 00:00:17]} {[%emt 00:00:04]} 42. Qe5 {[%clk 00:00:22]}
{[%emt 00:00:12]} a3 {[%clk 00:00:17]} {[%emt 00:00:02]} 43. Qf5 {[%clk
00:00:22]} {[%emt 00:00:02]} Qf8 {[%clk 00:00:16]} {[%emt 00:00:02]} 44. Rd1
{[%clk 00:00:18]} {[%emt 00:00:07]} a2 {[%clk 00:00:17]} 45. Ra1 {[%clk
00:00:20]} Qxd6 {[%clk 00:00:18]} {[%emt 00:00:01]} 0-1

[Event "MČR v bleskovém šachu družstev 2019"]
[Site "Teplice, Czech Republic"]
[Date "2019.09.14"]
[Round "15.7"]
[White "Cech, Pavel"]
[Black "Loskot, Petr"]
[Result "1-0"]
[TimeControl "3 mim. + 2 s"]
[WhiteTitle "IM"]
[BlackFideId "319570"]
[WhiteElo "2387"]
[BlackElo "2010"]

1. e4 {[%clk 00:03:02]} e6 {[%clk 00:03:03]} {[%emt 00:00:02]} 2. d4 {[%clk
00:03:03]} {[%emt 00:00:01]} d5 {[%clk 00:03:03]} {[%emt 00:00:02]} 3. Nd2
{[%clk 00:03:04]} {[%emt 00:00:02]} a6 {[%clk 00:03:03]} {[%emt 00:00:02]} 4.
Ngf3 {[%clk 00:02:55]} {[%emt 00:00:11]} c5 {[%clk 00:03:04]} 5. c3 {[%clk
00:02:54]} {[%emt 00:00:03]} Nc6 {[%clk 00:02:58]} {[%emt 00:00:07]} 6. Bd3
{[%clk 00:02:45]} {[%emt 00:00:11]} cxd4 {[%clk 00:02:48]} {[%emt 00:00:13]} 7.
cxd4 {[%clk 00:02:45]} {[%emt 00:00:02]} Nf6 {[%clk 00:02:36]} {[%emt
00:00:13]} 8. e5 {[%clk 00:02:43]} {[%emt 00:00:04]} Nd7 {[%clk 00:02:35]}
{[%emt 00:00:03]} 9. O-O {[%clk 00:02:41]} {[%emt 00:00:04]} Be7 {[%clk
00:02:29]} {[%emt 00:00:08]} 10. b3 {[%clk 00:02:00]} {[%emt 00:00:44]} f6
{[%clk 00:02:19]} {[%emt 00:00:11]} 11. Bb2 {[%clk 00:01:57]} {[%emt 00:00:05]}
O-O {[%clk 00:02:17]} {[%emt 00:00:03]} 12. Qb1 {[%clk 00:01:51]} {[%emt
00:00:09]} f5 {[%clk 00:02:10]} {[%emt 00:00:09]} 13. a3 {[%clk 00:01:48]}
{[%emt 00:00:05]} Kh8 {[%clk 00:02:03]} {[%emt 00:00:08]} 14. Qd1 {[%clk
00:01:47]} {[%emt 00:00:04]} Qe8 {[%clk 00:01:54]} {[%emt 00:00:12]} 15. Ne1
{[%clk 00:01:41]} {[%emt 00:00:07]} g5 {[%clk 00:01:35]} {[%emt 00:00:21]} 16.
f4 {[%clk 00:01:42]} {[%emt 00:00:02]} g4 {[%clk 00:01:36]} 17. b4 {[%clk
00:01:38]} {[%emt 00:00:06]} Na7 {[%clk 00:01:22]} {[%emt 00:00:17]} 18. Nb3
{[%clk 00:01:34]} {[%emt 00:00:05]} Nb6 {[%clk 00:01:08]} {[%emt 00:00:16]} 19.
Rc1 {[%clk 00:01:33]} {[%emt 00:00:03]} Bd7 {[%clk 00:01:05]} {[%emt 00:00:05]}
20. Nc5 {[%clk 00:01:33]} {[%emt 00:00:02]} Bxc5 {[%clk 00:00:49]} {[%emt
00:00:18]} 21. dxc5 {[%clk 00:01:32]} {[%emt 00:00:03]} Na4 {[%clk 00:00:40]}
{[%emt 00:00:11]} 22. Ba1 {[%clk 00:01:32]} {[%emt 00:00:02]} Rc8 {[%clk
00:00:40]} {[%emt 00:00:02]} 23. Nc2 {[%clk 00:01:28]} {[%emt 00:00:06]} Bb5
{[%clk 00:00:32]} {[%emt 00:00:09]} 24. Nd4 {[%clk 00:01:19]} {[%emt 00:00:10]}
Bxd3 {[%clk 00:00:31]} {[%emt 00:00:04]} 25. Qxd3 {[%clk 00:01:20]} {[%emt
00:00:01]} Nb5 {[%clk 00:00:27]} {[%emt 00:00:05]} 26. Nb3 {[%clk 00:01:04]}
{[%emt 00:00:18]} b6 {[%clk 00:00:21]} {[%emt 00:00:09]} 27. cxb6 {[%clk
00:01:02]} {[%emt 00:00:04]} Nxb6 {[%clk 00:00:20]} {[%emt 00:00:02]} 28. Nc5
{[%clk 00:01:01]} {[%emt 00:00:03]} Nc4 {[%clk 00:00:17]} {[%emt 00:00:06]} 29.
a4 {[%clk 00:00:49]} {[%emt 00:00:14]} Nc7 {[%clk 00:00:09]} {[%emt 00:00:10]}
30. Bd4 {[%clk 00:00:46]} {[%emt 00:00:04]} Rb8 {[%clk 00:00:10]} 31. Rb1
{[%clk 00:00:46]} {[%emt 00:00:04]} Qc6 {[%clk 00:00:05]} {[%emt 00:00:07]} 32.
h3 {[%clk 00:00:42]} {[%emt 00:00:06]} Rg8 {[%clk 00:00:05]} {[%emt 00:00:02]}
33. h4 {[%clk 00:00:38]} {[%emt 00:00:05]} h5 {[%clk 00:00:06]} {[%emt
00:00:01]} 34. g3 {[%clk 00:00:37]} {[%emt 00:00:04]} Rb6 {[%clk 00:00:06]}
{[%emt 00:00:01]} 35. Rb3 {[%clk 00:00:31]} {[%emt 00:00:08]} Rgb8 {[%clk
00:00:08]} {[%emt 00:00:01]} 36. Rfb1 {[%clk 00:00:32]} Qe8 {[%clk 00:00:05]}
{[%emt 00:00:06]} 37. Kh2 {[%clk 00:00:32]} {[%emt 00:00:02]} Qc6 {[%clk
00:00:06]} {[%emt 00:00:01]} 38. Qc3 {[%clk 00:00:18]} {[%emt 00:00:16]} Qe8
{[%clk 00:00:07]} {[%emt 00:00:02]} 39. Nd3 {[%clk 00:00:15]} {[%emt 00:00:05]}
Qc6 {[%clk 00:00:07]} {[%emt 00:00:01]} 40. Bxb6 {[%clk 00:00:16]} {[%emt
00:00:01]} 1-0

[Event "MČR v bleskovém šachu družstev 2019"]
[Site "Teplice, Czech Republic"]
[Date "2019.09.14"]
[Round "15.8"]
[White "Meszaros, Ludek"]
[Black "Sodoma, Jan"]
[Result "0-1"]
[TimeControl "3 mim. + 2 s"]
[BlackTitle "IM"]
[WhiteFideId "308153"]
[WhiteElo "2070"]
[BlackElo "2193"]

1. e4 {[%clk 00:03:02]} {[%emt 00:00:01]} e5 {[%clk 00:03:03]} {[%emt
00:00:01]} 2. Nf3 {[%clk 00:03:03]} Nc6 {[%clk 00:03:04]} {[%emt 00:00:02]} 3.
Bb5 {[%clk 00:03:05]} a6 {[%clk 00:03:04]} {[%emt 00:00:01]} 4. Ba4 {[%clk
00:03:06]} Nf6 {[%clk 00:03:05]} {[%emt 00:00:02]} 5. O-O {[%clk 00:03:07]}
{[%emt 00:00:01]} Be7 {[%clk 00:03:05]} {[%emt 00:00:01]} 6. Bxc6 {[%clk
00:03:07]} {[%emt 00:00:03]} dxc6 {[%emt 00:00:02]} 7. d3 Nd7 {[%clk 00:03:06]}
{[%emt 00:00:02]} 8. Nbd2 {[%clk 00:03:07]} {[%emt 00:00:03]} O-O {[%clk
00:03:05]} {[%emt 00:00:03]} 9. Nc4 {[%clk 00:03:08]} f6 {[%clk 00:03:06]} 10.
Nh4 {[%clk 00:03:04]} {[%emt 00:00:08]} Nc5 {[%clk 00:03:04]} {[%emt 00:00:03]}
11. Qf3 {[%clk 00:03:01]} {[%emt 00:00:05]} g6 {[%clk 00:02:54]} {[%emt
00:00:13]} 12. Qg3 {[%clk 00:02:52]} {[%emt 00:00:10]} Rf7 {[%clk 00:02:52]}
{[%emt 00:00:04]} 13. f4 {[%clk 00:02:43]} {[%emt 00:00:10]} exf4 {[%clk
00:02:34]} {[%emt 00:00:21]} 14. Bxf4 {[%clk 00:02:42]} {[%emt 00:00:03]} Bf8
{[%clk 00:02:20]} {[%emt 00:00:16]} 15. Kh1 {[%clk 00:02:36]} {[%emt 00:00:08]}
a5 {[%clk 00:02:08]} {[%emt 00:00:14]} 16. Rad1 {[%clk 00:02:21]} {[%emt
00:00:17]} b5 {[%clk 00:02:08]} {[%emt 00:00:02]} 17. Nd2 {[%clk 00:02:12]}
{[%emt 00:00:11]} Ne6 {[%clk 00:02:09]} {[%emt 00:00:01]} 18. Be3 {[%clk
00:02:12]} {[%emt 00:00:03]} Bd6 {[%clk 00:02:05]} {[%emt 00:00:05]} 19. Qf2
{[%clk 00:02:06]} {[%emt 00:00:08]} a4 {[%clk 00:01:57]} {[%emt 00:00:10]} 20.
Nhf3 {[%clk 00:01:55]} {[%emt 00:00:13]} c5 {[%clk 00:01:46]} {[%emt 00:00:13]}
21. c3 {[%clk 00:01:41]} {[%emt 00:00:17]} Ba6 {[%clk 00:01:36]} {[%emt
00:00:11]} 22. d4 {[%clk 00:01:33]} {[%emt 00:00:10]} cxd4 {[%clk 00:01:24]}
{[%emt 00:00:14]} 23. cxd4 {[%clk 00:01:34]} {[%emt 00:00:01]} b4 {[%clk
00:01:25]} 24. Rfe1 {[%clk 00:01:35]} {[%emt 00:00:01]} Nf4 {[%clk 00:01:19]}
{[%emt 00:00:08]} 25. Nf1 {[%clk 00:01:04]} {[%emt 00:00:33]} Nd3 {[%clk
00:01:14]} {[%emt 00:00:06]} 26. Rxd3 {[%clk 00:01:01]} {[%emt 00:00:05]} Bxd3
{[%clk 00:01:14]} {[%emt 00:00:02]} 27. Ng3 {[%clk 00:01:02]} {[%emt 00:00:01]}
Bxg3 {[%clk 00:01:06]} {[%emt 00:00:10]} 28. Qxg3 {[%clk 00:01:00]} {[%emt
00:00:04]} Bxe4 {[%clk 00:01:07]} {[%emt 00:00:01]} 29. Nd2 {[%clk 00:00:48]}
{[%emt 00:00:14]} Bd5 {[%clk 00:01:06]} {[%emt 00:00:03]} 30. b3 {[%clk
00:00:43]} {[%emt 00:00:07]} axb3 {[%clk 00:01:06]} {[%emt 00:00:02]} 31. axb3
{[%clk 00:00:44]} {[%emt 00:00:02]} Qd7 {[%clk 00:01:04]} {[%emt 00:00:03]} 32.
h3 {[%clk 00:00:38]} {[%emt 00:00:08]} Re7 {[%clk 00:01:03]} {[%emt 00:00:04]}
33. Kh2 {[%clk 00:00:36]} {[%emt 00:00:04]} Rae8 {[%clk 00:01:02]} {[%emt
00:00:02]} 34. Bf2 {[%clk 00:00:26]} {[%emt 00:00:13]} Rxe1 {[%clk 00:01:02]}
{[%emt 00:00:02]} 35. Bxe1 {[%clk 00:00:27]} Re2 {[%clk 00:01:02]} {[%emt
00:00:02]} 0-1

[Event "MČR v bleskovém šachu družstev 2019"]
[Site "Teplice, Czech Republic"]
[Date "2019.09.14"]
[Round "15.9"]
[White "Babicka, Michal"]
[Black "Jirovsky, Milos"]
[Result "0-1"]
[TimeControl "3 mim. + 2 s"]
[BlackTitle "GM"]
[BlackFideId "303224"]
[WhiteElo "2076"]
[BlackElo "2499"]

1. c4 {[%emt 00:19:55]} e6 {[%emt 00:00:01]} 2. b3 d5 {[%emt 00:00:01]} 3. cxd5
exd5 {[%emt 00:00:01]} 4. Bb2 Nf6 {[%emt 00:00:01]} 5. g3 Be7 {[%emt 00:00:07]}
6. Bg2 {[%emt 00:00:01]} O-O {[%emt 00:00:01]} 7. Nf3 c6 {[%emt 00:00:04]} 8.
O-O {[%emt 00:00:02]} Re8 {[%emt 00:00:05]} 9. d4 {[%emt 00:00:01]} Bf5 {[%emt
00:00:01]} 10. Nc3 {[%emt 00:00:11]} Nbd7 {[%emt 00:00:02]} 11. Ne5 {[%emt
00:00:03]} Bd6 {[%emt 00:00:07]} 12. Nxd7 {[%emt 00:00:03]} Qxd7 {[%emt
00:00:02]} 13. Re1 {[%emt 00:00:02]} Re6 {[%emt 00:00:11]} 14. e3 {[%emt
00:00:20]} Rae8 {[%emt 00:00:04]} 15. a3 {[%emt 00:00:05]} h5 {[%emt 00:00:11]}
16. h4 {[%emt 00:00:03]} Ng4 {[%emt 00:00:06]} 17. Qd2 {[%emt 00:00:10]} Rf6
{[%emt 00:00:12]} 18. Rf1 {[%emt 00:00:26]} Bg6 {[%emt 00:00:30]} 19. Rae1
{[%emt 00:00:10]} Rfe6 {[%emt 00:00:03]} 20. Nd1 {[%emt 00:00:03]} Qe7 {[%emt
00:00:06]} 21. b4 {[%emt 00:00:31]} Bf5 {[%emt 00:00:03]} 22. Re2 {[%emt
00:00:18]} g5 {[%emt 00:00:10]} 23. hxg5 {[%emt 00:00:10]} Qxg5 {[%emt
00:00:06]} 24. f4 {[%emt 00:00:05]} Qg6 {[%emt 00:00:05]} 25. Bf3 {[%emt
00:00:12]} Kh7 {[%emt 00:00:28]} 26. Bc1 {[%emt 00:00:27]} Rg8 {[%emt
00:00:07]} 27. Rg2 {[%emt 00:00:07]} Kg7 {[%emt 00:00:05]} 28. Bxg4 {[%emt
00:00:07]} hxg4 {[%emt 00:00:09]} 29. Rh2 Kf8 {[%emt 00:00:09]} 30. Kf2 {[%emt
00:00:01]} Be4 {[%emt 00:00:03]} 31. Nc3 {[%emt 00:00:02]} Bf3 32. a4 {[%emt
00:00:13]} Bxb4 {[%emt 00:00:02]} 33. Qb2 a5 {[%emt 00:00:03]} 34. Qb3 {[%emt
00:00:02]} Qd3 {[%emt 00:00:06]} 0-1